Cogmind - Beta 10.2 @@@ ROGUE MODE // 2021.12.26 @ 14:58:29 Player: KeepAwake2 Result: Destroyed by D-53 Grenadier with Mini Grenade Launcher Performance ------------- Evolutions (1) 500 Regions Visited (3) 600 Robots Destroyed (20) 100 Value Destroyed (530) 530 Prototype IDs (3) 60 Alien Tech Used (0) 0 Bonus (25) 25 TOTAL SCORE: 1815 Bonus ------- Follower Combat Kills 25 Cogmind --------- Core Integrity 0/400 Matter 285/300 Energy 129/250 System Corruption 0% Temperature Cool (0) Movement Core (100) Ox1 Location -9/Mines Parts ------- > --- POWER (1) -------- Ion Engine > --- PROPULSION (4) --- (None) > --- UTILITY (2) ------ Improved Signal Interpreter > --- WEAPON (2) ------- (None) > --- INVENTORY (4) ---- Small Storage Unit Improved Targeting Computer Hardened Light Armor Plating Mining Laser Peak State ------------ > --- POWER ------------ Light Nuclear Core > --- PROPULSION ------- Aluminum Leg Aluminum Leg Aluminum Leg Aluminum Leg > --- UTILITY ---------- Large Storage Unit Weapon Shielding > --- WEAPON ----------- Heavy EM Pulse Gun Improved Medium Laser > --- INVENTORY -------- Ion Engine Aluminum Leg Small Storage Unit Targeting Computer Hardened Light Armor Plating Hardened Light Armor Plating Assault Rifle [Rating: 14] Favorites ----------- Power Ion Engine Engine Ion Engine Power Core Light Nuclear Core Propulsion Aluminum Leg Leg Aluminum Leg Utility Large Storage Unit Storage Large Storage Unit Processor Improved Signal Interpreter Protection Weapon Shielding Weapon Assault Rifle Energy Gun Beam Rifle Ballistic Gun Assault Rifle Build | -11 -10 -9 -9 ------- Run | Scr Mat Mat Min Slots Evolved 2 | . . 2 . Power . | . . . . Propulsion 2 | . . 2 . Utility . | . . . . Weapon . | . . . . Parts Attached 30 | 6 3 14 7 Power 6 | 1 1 2 2 Engine 5 | 1 1 1 2 Core 1 | . . 1 . Reactor . | . . . . Propulsion 8 | 2 . 4 2 Treads . | . . . . Leg 8 | 2 . 4 2 Wheel . | . . . . Hover . | . . . . Flight . | . . . . Utility 6 | 1 1 3 1 Device . | . . . . Storage 3 | 1 . 2 . Processor 1 | . . . 1 Hackware . | . . . . Protection 2 | . 1 1 . Artifact . | . . . . Weapon 10 | 2 1 5 2 Energy Gun 6 | 1 . 4 1 Energy Cannon . | . . . . Ballistic Gun 4 | 1 1 1 1 Ballistic Cannon . | . . . . Launcher . | . . . . Special Weapon . | . . . . Impact Weapon . | . . . . Slashing Weapon . | . . . . Piercing Weapon . | . . . . Special Melee Weapon . | . . . . Unidentified Prototypes 1 | . . 1 . Parts Lost 15 | . 1 4 10 Power 2 | . . 1 1 Propulsion 7 | . . 2 5 Utility . | . . . . Weapon 6 | . 1 1 4 Highest Loss Streak 7 | . 1 2 7 Average Slot Usage (%) 90 | . 95 91 83 Engine 8 | . 14 6 11 Core 2 | . . 3 . Leg 34 | . 28 37 29 Storage 11 | . 14 11 10 Processor 1 | . . . 6 Protection 9 | . 10 11 4 Energy Gun 11 | . 9 12 10 Ballistic Gun 11 | . 17 9 10 Naked Turns . | . . . . Heaviest Build 34 | 13 14 34 34 Greatest Support 40 | 20 20 40 30 Greatest Overweight (x) 3 | 1 . 1 3 Average Overweight (x) . | . . . . Largest Inventory Capacity 10 | 6 6 10 10 Average Capacity 9 | 5 6 9 9 Most Carried 8 | 1 3 8 8 Average Carried 5 | . 1 6 7 Final Capacity 10 | 6 6 10 4 Final Carried 8 | 1 3 8 4 Class Distribution -------------------- 59% | Scavenger-Mutant 40% | Mutant Dominant Class ---------------- Mutant | -10/Materials Scavenger-Mutant | -9/Materials Scavenger-Mutant | -9/Mines Resources | -11 -10 -9 -9 ----------- Run | Scr Mat Mat Min Matter Collected 642 | 223 100 250 69 Remotely . | . . . . Salvage Created 651 | . 136 389 126 Parts 38 | . 7 27 4 Haulers Intercepted 1 | . . 1 . Recyclers Shooed . | . . . . Parts Field Recycled . | . . . . Retrieved Matter . | . . . . Parts Self-Destructed . | . . . . Prevented . | . . . . Kills | -11 -10 -9 -9 ------- Run | Scr Mat Mat Min Combat Hostiles Destroyed 18 | . 4 10 4 Guns 17 | . 3 10 4 AOE 1 | . 1 . . Classes Destroyed 6 | . 3 2 1 Hauler 1 | . . 1 . Recycler 1 | . 1 . . Swarmer 7 | . 3 4 . Grunt 7 | . 1 3 3 Sentry 3 | . . 3 . Demolisher 1 | . . . 1 Best Kill Streak 3 | . 3 3 2 Combat Bots Only 3 | . 3 3 2 Max Kills in Single Turn 1 | . 1 1 1 Gunslinging . | . . . . Exploded 1 | . 1 . . Melee . | . . . . Uniques/NPCs Destroyed . | . . . . Combat | -11 -10 -9 -9 -------- Run | Scr Mat Mat Min Damage Taken 1846 | . 216 711 919 Core 438 | . 37 75 326 Absorbed by Shields . | . . . . Core Remaining (%) 92 | 100 85 . . Volleys Fired 74 | . 11 46 17 Largest 2 | . 2 2 2 Hottest 101 | . 60 101 79 Shots Fired 140 | . 22 91 27 Gun 140 | . 22 91 27 Cannon . | . . . . Launcher . | . . . . Special . | . . . . Kinetic 91 | . 16 60 15 Thermal 26 | . . 16 10 Explosive . | . . . . Electromagnetic 23 | . 6 15 2 Robot Hit Streak 14 | . 13 14 6 Robot Miss Streak 2 | . 2 2 2 Penetration Max . | . . . . Secondary Targets 3 | . 1 1 1 Max Gunslinging Chain 1 | . 1 1 1 Shots Hit Robots 98 | . 17 62 19 Core Hits 33 | . 7 18 8 Critical Hits 1 | . 1 . . Critical Kills . | . . . . Critical Parts Destroyed 1 | . 1 . . Melee Attacks . | . . . . Impact . | . . . . Slashing . | . . . . Piercing . | . . . . Sneak Attacks . | . . . . Combat Hostiles . | . . . . Follow-up Attacks . | . . . . Damage Inflicted 1200 | . 181 740 279 Guns 1153 | . 134 740 279 Cannons . | . . . . Explosions 47 | . 47 . . Melee . | . . . . Ramming . | . . . . Kinetic 646 | . 94 415 137 Thermal 351 | . 47 187 117 Explosive . | . . . . Electromagnetic 203 | . 40 138 25 Impact . | . . . . Slashing . | . . . . Piercing . | . . . . Highest Corruption . | . . . . Average Corruption . | . . . . Corruption Purged . | . . . . Overload Shots . | . . . . Overflow Damage 4 | . 4 . . Projectiles . | . . . . Explosions 4 | . 4 . . Melee . | . . . . Knockbacks . | . . . . Impact . | . . . . Kinetic . | . . . . Secondary . | . . . . Self-Inflicted Damage 40 | . 40 . . Shots 1 | . 1 . . Rammed . | . . . . Targets Rammed . | . . . . Kicked . | . . . . Crushed . | . . . . Highest Temperature 306 | . 12 203 306 Average Temperature 80 | . 9 57 129 Received Heat Transfer 501 | . 12 270 219 Effects 1 | . . . 1 Energy Bleed 1 | . . . 1 Siege Activations . | . . . . Robots Corrupted . | . . . . Combat Hostiles . | . . . . Parts Fried . | . . . . Impact Corruptions . | . . . . Robots Melted . | . . . . Combat Hostiles . | . . . . Parts Melted . | . . . . Heat Transferred 827 | . 50 481 296 Parts Sabotaged . | . . . . Parts Stolen . | . . . . Parts Stripped . | . . . . Power Chain Reactions 1 | . 1 . . Missiles Intercepted . | . . . . Alert | -11 -10 -9 -9 ------- Run | Scr Mat Mat Min Peak Influence 254 | . 130 254 112 Initial 54 | . . 54 41 Average 83 | . 45 104 70 Maximum Alert Level 1 | . . 1 . Low Security (%) 93 | 100 100 88 100 Level 1 6 | . . 11 . Level 2 . | . . . . Level 3 . | . . . . Level 4 . | . . . . Level 5 . | . . . . High Security . | . . . . Max Security . | . . . . Squads Dispatched 3 | . 1 2 . Investigation . | . . . . Extermination . | . . . . Reinforcement 3 | . 1 2 . Assault . | . . . . Garrison . | . . . . Intercept . | . . . . Construction Impeded . | . . . . Haulers Reinforced . | . . . . Stealth | -11 -10 -9 -9 --------- Run | Scr Mat Mat Min Distress Signals 1 | . . 1 . Communications Jammed . | . . . . Distress Signals . | . . . . Times Spotted 29 | . 6 15 8 Peak Tracking Total 5 | . 5 4 4 Tactical Retreats 3 | . . 3 . Traps | -11 -10 -9 -9 ------- Run | Scr Mat Mat Min Traps Triggered . | . . . . Indirectly . | . . . . Trap Hack Attempts . | . . . . Triggered . | . . . . Disarmed . | . . . . Reprogrammed . | . . . . Reused . | . . . . Traps Extracted . | . . . . Installed . | . . . . Triggered . | . . . . Machines | -11 -10 -9 -9 ---------- Run | Scr Mat Mat Min Machines Disabled . | . . . . Max in Single Turn . | . . . . Machines Sabotaged . | . . . . Garrisons Compromised . | . . . . Overloaded Fab Kills . | . . . . Fab Network Shutdowns . | . . . . Hacking | -11 -10 -9 -9 --------- Run | Scr Mat Mat Min Machines Accessed 4 | . 1 3 . Terminals 4 | . 1 3 . Fabricators . | . . . . Repair Stations . | . . . . Recycling Units . | . . . . Scanalyzers . | . . . . Garrison Access . | . . . . Total Hacks 11 | . 1 10 . Successful 6 | . 1 5 . Failed 5 | . . 5 . Catastrophic . | . . . . Database Lockouts . | . . . . Manual . | . . . . Terminals 11 | . 1 10 . Fabricators . | . . . . Repair Stations . | . . . . Recycling Units . | . . . . Scanalyzers . | . . . . Garrison Access . | . . . . Terminal Hacks 6 | . 1 5 . Prototype ID Bank 1 | . . 1 . Branch Access Points 1 | . . 1 . Alert Level 2 | . . 2 . Unreport Threat 1 | . . 1 . Hauler Manifests 1 | . 1 . . Fabricator Hacks . | . . . . Repair Station Hacks . | . . . . Recycling Unit Hacks . | . . . . Scanalyzer . | . . . . Garrison Access Hacks . | . . . . Unauthorized Hacks . | . . . . Terminals . | . . . . Fabricators . | . . . . Repair Stations . | . . . . Recycling Units . | . . . . Scanalyzers . | . . . . Garrison Access . | . . . . Data Cores Recovered . | . . . . Used . | . . . . Hacking Detections 3 | . . 3 . Full Trace Events . | . . . . Feedback Events . | . . . . Feedback Blocked . | . . . . Robot Schematics Acquired . | . . . . Robots Built . | . . . . Matter . | . . . . Time . | . . . . Total Robot Build Rating . | . . . . Part Schematics Acquired . | . . . . Parts Built . | . . . . Matter . | . . . . Time . | . . . . Total Part Build Rating . | . . . . Parts Repaired . | . . . . Time . | . . . . Parts Recycled . | . . . . Recycled Matter . | . . . . Retrieved Matter . | . . . . Retrieved Components . | . . . . Parts Scanalyzed . | . . . . Part Schematics Acquired . | . . . . Parts Damaged . | . . . . Bothacking | -11 -10 -9 -9 ------------ Run | Scr Mat Mat Min Used RIF Installer . | . . . . Robots Hacked . | . . . . Non-combat . | . . . . Combat . | . . . . Robot Hacks Applied . | . . . . Relay Couplers Released . | . . . . Robots Rewired . | . . . . Allies Hacked . | . . . . Hacks Repelled . | . . . . Allies | -11 -10 -9 -9 -------- Run | Scr Mat Mat Min Total Allies 3 | . . . 3 Largest Group 3 | . . . 3 Highest-Rated Group 40 | . . . 40 Highest-Rated Ally 16 | . . . 16 Total Orders 3 | . . . 3 FOLLOW 1 | . . . 1 GUARD 2 | . . . 2 Ally Attacks 15 | . . . 15 Total Damage 176 | . . . 176 Kills 2 | . . . 2 Allies Corrupted . | . . . . Allies Melted . | . . . . Intel | -11 -10 -9 -9 ------- Run | Scr Mat Mat Min Robot Analysis Total . | . . . . Derelict Logs Recovered 1 | . . . 1 Drone Launches . | . . . . Drone Recoveries . | . . . . Exploration | -11 -10 -9 -9 ------------- Run | Scr Mat Mat Min Turns Passed 1217 | 57 181 708 271 Spaces Moved 627 | 39 112 336 140 Core 8 | 2 . . 6 Treads . | . . . . Legs 619 | 37 112 336 134 Wheels . | . . . . Hover . | . . . . Flight . | . . . . Fastest Speed 50 | 50 120 120 50 Average Speed 129 | 122 120 133 129 Slowest Speed 210 | 150 120 150 210 Overloaded Moves . | . . . . Propulsion Burnouts . | . . . . Robots Hopped . | . . . . Cave-ins Triggered . | . . . . Exploration Rate (%) 26 | 3 23 34 45 Regions Visited 3 Branch Regions 1 Pre-discovered Areas . | . . . . Known Exits Taken 1 | . . 1 . Unknown Exits Taken 2 | 1 1 . . Scrap Searched 1 | . . . 1 Spaces Dug . | . . . . Terrain Destroyed 5 | . 5 . . Melee . | . . . . Projectile . | . . . . AOE 5 | . 5 . . Terrain Rammed . | . . . . Walls Destroyed . | . . . . Machines Disabled . | . . . . Actions | -11 -10 -9 -9 --------- Run | Scr Mat Mat Min Total 891 | 45 136 508 202 Wait 135 | . 8 96 31 Move 624 | 38 111 335 140 Hop . | . . . . Pick Up 17 | 1 2 9 5 Fast Attach 14 | 6 2 5 1 Attach 8 | . . 4 4 Detach 1 | . . 1 . Swap 8 | . 1 5 2 Drop 10 | . 1 7 2 Fire 74 | . 11 46 17 Melee . | . . . . Ram . | . . . . Kick . | . . . . Crush . | . . . . Escape Stasis . | . . . . Rewire . | . . . . Trap . | . . . . Miscellaneous . | . . . . Route ------- -11/Scrapyard -10/Materials -9/Materials -9/Mines (discovered 2 exits: *Mat / *Exi) History --------- Turn | Location | Event 5 | -11/Scrapyard | Discovered new exit (range 15) 58 | -11/Scrapyard | Entered Materials 233 | -10/Materials | Discovered new exit (range 4) 239 | -10/Materials | Entered another Materials area 239 | -9/Materials | Evolved 2 slots: Propulsion x2 312 | -9/Materials | Build established: Mutant 728 | -9/Materials | Discovered new exit (range 8) 822 | -9/Materials | Identified exit to Mines 947 | -9/Materials | Entered Mines 1013 | -9/Mines | Lost 3 parts (2n1w) 1029 | -9/Mines | Build established: Scavenger-Mutant 1050 | -9/Mines | Deemed a non-threat by the Exiles lab entrance 1051 | -9/Mines | Discovered new exit (range 5) 1058 | -9/Mines | Identified exit to Exiles 1087 | -9/Mines | Learned Materials emergency access door positions 1108 | -9/Mines | Assisted by bots powering up and referring to "LRC-V3" 1130 | -9/Mines | Discovered new exit (range 6) 1135 | -9/Mines | Identified exit to Materials 1180 | -9/Mines | Assembled infested the area 1206 | -9/Mines | Core integrity fell below 50% 1212 | -9/Mines | Core integrity fell below 20% 1218 | -9/Mines | Destroyed by D-53 Grenadier with Mini Grenade Launcher Last Messages --------------- G-47 Trooper destroyed. Mercenary 2a destroyed. Trooper 2a destroyed. as-09832 destroyed. Trooper 2b destroyed. T-07 Excavator destroyed. Aluminum Leg destroyed. Ion Engine destroyed. D-53 Grenadier destroyed. The unstable cave ceiling collapses. Hvy. Assault Rifle destroyed. Dropped Lrg. Storage Unit. The unstable cave ceiling collapses. Acquired Sml. Storage Unit. Acquired Hvy. EM Pulse Gun. The unstable cave ceiling collapses. Hvy. EM Pulse Gun destroyed. R-06 Scavenger collects Mining Laser. R-06 Scavenger collects Wheel. The unstable cave ceiling collapses. Map ----- +----------------------------------------------------+ | ???????????????????????????????????????????? | | ???????????????????????????????????????????? | | ???????????????????????????????????????????? | | ???????????????????????????????????????????? | | ???????????????????????????????????????????? | | ???????????????????????????????????????????? | | ???????????????????????????????????????????? | | ???????????????????????????????????????????? | | ???????????????????????????????????????????? | | ???????????????????????????????????????????? | | ????????????????????????? ???????????????? | | ????????????????????????? ???????????????? | | ???????????????????????? ???????????????? | | ???????????????????????? ???????????????? | | ???????????????????????? k ???????????????? | | ???????????????????????? ???????????????? | | ????????????????????????# #???????????????? | | ????????????????????????# #???????????????? | | ????????????????????????#k #???????????????? | | ???????????????????????## #???????????????? | | ??????????????????????? ##??????????????? | | ???????????????????????# % #??????????????? | | ??????????????????????### = ####???????????? | | ?????????????????????## % #???????????? | | ?????????????????????# = % #???????????? | | ????????????????????## @ #???????????? | | ???????????????????## r #######?????? | | ???????????????????# rd %"#?????? | | ???????????????????# ##### #?????? | | ?#?????????????????# !! #???# #?????? | | # ????????????????# ##???# #?????? | | ??????????????### #????# ##????? | | ????????????## ### ##?#### ##???? | | ??????????### #### # ##?## ##??? | | ########### #???########## #??? | | ## #???????#% #??? | | ## #???????# ! #??? | | # ####### ########?# ##### ##??? | | ####??# # ## ### #???## < #???? | | ##?## # # #????## ##???? | | #??## #?????#####????? | | #???# #######??????????????? | | #???## ##????????????????????? | | #????# #?????????????????????? | | ##????## #?????????????????????? | | ####??????# ????????????????????? | | ##???????# ???????????????????? | | #??????# ### ??????????????????? | | #?????# ###??? ?????????????????? | | #?????# ##?????? ????????????????? | +----------------------------------------------------+ Best States ------------- Heat Dissipation 28 Energy Generation 14 Energy Capacity 265 Matter Stores 300 Matter Capacity 300 Sight Range 16 Terrain Scan Density 10 Armor Coverage 150 Weapon Shielding 33 Evasion (%) 40 Item Schematics ----------------- None Robot Schematics ------------------ None Fabricated ------------ Nothing Alien Tech Used ----------------- None Achievements -------------- None Challenges ------------ None Game ------ Seed GammaLongswordReplicator Manual? 0 Play Time 00:13:38 Cumulative 65.9 hours Start 2021.12.26 @ 14:45:28 End 2021.12.26 @ 14:58:29 Sessions 1 Manual Loads 0 Difficulty Rogue Special Mode None Game No. 20 Rogue 20 Adventurer 0 Explorer 0 Win Type - Total 0 Types 0/0/0/0/0/0/0/0/0 Lore% 34 Gallery% 43 Achievement% 28 Wizard Run 0 Options --------- ASCII 0 Keyboard 0 Movement Mouse Keybinds 0 Fullscreen 2 Font 18/SmallcapsGlow Map View 76x50 Tactical HUD 0 Map Filters NONE Filters NONE Steam 1 RUN: f316dd4c-56bc-4244-a10a-4c9e676e03f9